bitfinex-derivatives/quotes_SOLF0:USTF0_20240913
["timestamp","ask_amount","ask_price","bid_price","bid_amount"]
[1726246690105,3.6589,136.63,136.61,2.07585879]
[1726246695313,3.6592,136.62,136.61,2.07585879]
[1726246696908,12.22495346,136.69,136.61,13.31585879]
[1726246696909,3.57955346,136.69,136.61,13.31585879]
[1726246697110,3.57955346,136.69,136.64,11.24]
[1726246697111,11.24,136.69,136.64,11.24]
[1726246697304,11.24,136.69,136.61,2.07585879]
[1726246697305,14.84727664,136.69,136.66,11.24]
[1726246697512,3.6578,136.67,136.66,11.24]
[1726246698317,3.6578,136.67,136.64,11.24]
[1726246698711,3.6576,136.68,136.66,11.24]
[1726246698910,3.60727664,136.69,136.66,11.24]
[1726246699116,11.24,136.7,136.64,11.24]
[1726246699417,11.24,136.68,136.64,11.24]
[1726246699916,3.6581,136.67,136.64,11.24]
[1726246701811,3.6581,136.66,136.64,11.24]
[1726246702712,11.24,136.67,136.62,3.65457]
[1726246702903,11.24,136.67,136.62,14.89457]
[1726246703103,11.24,136.67,136.63,11.24]
[1726246703320,3.6583,136.66,136.64,11.24]
[1726246703519,11.24,136.68,136.64,11.24]
[1726246703719,114.31505803,136.74,136.62,3.65457]
[1726246703720,3.658,136.67,136.65,11.24]
[1726246704918,3.6581,136.66,136.65,11.24]
[1726246705218,14.95603752,136.69,136.65,11.24]
[1726246706212,3.658,136.67,136.65,11.24]
[1726246706412,3.658,136.67,136.64,11.24]
[1726246707019,3.6581,136.66,136.63,11.24]
[1726246710328,3.6581,136.66,136.63,14.8989]
[1726246710819,3.6581,136.66,136.64,14.8986]
[1726246711122,3.6581,136.66,136.64,11.24]
[1726246714817,14.95164461,136.69,136.62,7.31367]
[1726246714818,3.6585,136.65,136.62,7.31367]
[1726246715125,3.6585,136.65,136.63,11.24]
[1726246715527,3.6587,136.64,136.63,11.24]
[1726246715826,11.24,136.64,136.61,2.07585879]
[1726246716024,3.6592,136.62,136.61,2.07585879]
[1726246735542,14.8992,136.62,136.61,2.07585879]
[1726246736042,7.33138291,136.62,136.61,2.07585879]
[1726246736242,18.57138291,136.62,136.61,2.07585879]
[1726246736635,18.57138291,136.62,136.61,0.26212233]
[1726246739145,7.33138291,136.62,136.61,0.26212233]
[1726246739334,18.57138291,136.62,136.61,0.26212233]
[1726246744453,14.8992,136.62,136.61,0.26212233]
[1726246745452,3.659,136.63,136.61,0.26212233]
[1726246746853,3.6592,136.62,136.61,0.26212233]
[1726246747943,14.899,136.63,136.61,0.26212233]
[1726246750150,3.6592,136.62,136.61,0.26212233]
[1726246750450,14.8992,136.62,136.61,0.26212233]
[1726246750650,18.57301951,136.62,136.61,0.26212233]
[1726246752758,18.57301951,136.62,136.61,0.0349841]
[1726246753456,3.6597,136.6,136.59,2.24626674]
[1726246753658,14.8997,136.6,136.59,2.24626674]
[1726246754157,3.6597,136.6,136.59,2.24626674]
[1726246754346,14.8997,136.6,136.59,2.24626674]
[1726246756966,3.6597,136.6,136.59,2.24626674]
[1726246757261,14.8997,136.6,136.59,2.24626674]
[1726246759063,3.6603,136.58,136.57,2.91790385]
[1726246759255,11.24,136.58,136.54,3.22028069]
[1726246759453,7.3191,136.61,136.54,3.22028069]
[1726246759655,14.9011,136.55,136.54,3.22028069]
[1726246760660,18.64852709,136.55,136.54,3.22028069]
[1726246761063,3.6616,136.53,136.52,1.27449324]
[1726246761261,14.9016,136.53,136.52,1.27449324]
[1726246764862,3.6616,136.53,136.52,1.27449324]
[1726246765163,14.9016,136.53,136.52,1.27449324]
[1726246765464,3.6621,136.51,136.5,3.2881252]
[1726246765659,14.9021,136.51,136.5,3.2881252]
[1726246776283,3.6621,136.51,136.5,3.2881252]
[1726246776472,14.9021,136.51,136.5,3.2881252]
[1726246780078,3.74742709,136.55,136.5,3.2881252]
[1726246780079,3.6617,136.53,136.5,3.2881252]
[1726246780277,11.24,136.54,136.5,3.2881252]
[1726246780579,3.6618,136.53,136.5,6.0208252]
[1726246781172,3.6619,136.52,136.5,6.0208252]
[1726246781877,14.9019,136.52,136.5,6.0208252]
[1726246785381,3.6621,136.51,136.5,6.0208252]
[1726246788778,14.9021,136.51,136.5,3.2881252]
[1726246792574,3.6619,136.52,136.5,3.2881252]
[1726246792776,14.9737789,136.58,136.5,3.2881252]
[1726246792777,11.24,136.53,136.5,3.2881252]
[1726246793582,3.6619,136.52,136.5,3.2881252]
[1726246794980,40.30520871,136.64,136.51,11.24]
[1726246794981,7.3188,136.62,136.51,11.24]
[1726246795176,11.24,136.57,136.52,11.24]
[1726246795382,3.6612,136.55,136.51,12.5995]
[1726246796101,3.6614,136.54,136.51,12.5995]
[1726246796393,14.93876893,136.56,136.51,12.5995]
[1726246796594,3.6613,136.54,136.51,12.5995]
[1726246797092,14.93876893,136.56,136.51,12.5995]
[1726246797388,3.6615,136.54,136.51,12.5995]
[1726246798993,3.6616,136.53,136.51,1.3595]
[1726246800193,3.6616,136.53,136.51,2.7802]
[1726246800791,3.6615,136.54,136.51,6.4423]
[1726246801094,11.24,136.57,136.52,12.5953]
[1726246801395,3.6612,136.55,136.52,16.2571]
[1726246802394,3.6614,136.54,136.52,1.3553]
[1726246802596,11.24,136.56,136.52,1.3553]
[1726246802894,3.6615,136.54,136.52,1.3553]
[1726246803396,3.6612,136.55,136.52,1.3553]
[1726246804088,3.6612,136.55,136.52,12.5953]
[1726246804487,3.6609,136.56,136.52,12.5953]
[1726246804691,1.3149,136.63,136.55,11.24]
[1726246804895,11.24,136.61,136.56,12.651]
[1726246805398,3.6598,136.6,136.56,16.3117]
[1726246805787,3.6605,136.58,136.56,1.411]
[1726246805990,11.24,136.6,136.56,12.651]
[1726246806197,11.24,136.61,136.56,12.651]
[1726246806396,11.24,136.62,136.59,11.24]
[1726246807001,11.24,136.62,136.57,6.44467]
[1726246807193,11.24,136.62,136.57,14.0265]
[1726246807395,11.24,136.6,136.57,2.7865]
[1726246807594,11.24,136.58,136.56,1.411]
[1726246808199,11.24,136.57,136.51,14.0113]
[1726246808408,11.24,136.55,136.51,15.4024]
[1726246808697,11.24,136.55,136.52,3.6617]
[1726246809292,3.6612,136.55,136.52,3.6617]
[1726246809488,11.24,136.57,136.53,11.24]
[1726246809694,3.72581489,136.6,136.56,11.24]
[1726246809898,3.6604,136.58,136.56,11.24]
[1726246810406,3.6604,136.58,136.53,17.59]
[1726246810707,3.6601,136.59,136.53,17.59]
[1726246810901,3.6601,136.59,136.56,3.6606]
[1726246811292,3.6601,136.59,136.57,1.3504]
[1726246811495,17.59,136.63,136.57,1.3504]
[1726246811694,17.59,136.65,136.57,18.9404]
[1726246811901,17.59,136.65,136.58,3.6601]
[1726246812293,17.59,136.65,136.57,18.9404]
[1726246812493,17.59,136.63,136.57,1.3504]
[1726246812694,3.6599,136.6,136.57,1.3504]
[1726246813113,3.6596,136.61,136.57,5.0107]
[1726246813306,17.59,136.65,136.57,18.9404]
[1726246813504,17.59,136.63,136.57,1.3504]
[1726246813709,3.6597,136.61,136.57,5.0108]
[1726246813899,17.59,136.65,136.57,18.9404]
[1726246814101,3.6594,136.62,136.58,3.6601]
[1726246818707,17.59,136.65,136.57,18.9404]
[1726246819011,3.6591,136.63,136.59,3.66]
[1726246819410,3.6592,136.62,136.58,3.6601]
[1726246822015,3.6596,136.61,136.57,26.25697]
[1726246822222,3.6596,136.61,136.57,22.59657]
[1726246822720,3.6596,136.61,136.57,26.25697]
[1726246823416,3.6593,136.62,136.58,3.6601]
[1726246823618,17.59,136.65,136.58,3.6601]
[1726246824524,3.6593,136.62,136.58,3.6601]
[1726246826624,3.6591,136.63,136.59,17.59]
[1726246827217,3.6591,136.63,136.59,21.2498]
[1726246831129,3.6592,136.62,136.59,17.59]
[1726246831330,17.59,136.65,136.58,3.65617]
[1726246832035,1.4214,136.66,136.59,17.59]
[1726246832338,11.25,136.65,136.61,11.25]
[1726246833342,3.6591,136.63,136.61,11.25]
[1726246833534,11.25,136.65,136.61,11.25]
[1726246833725,1.4214,136.66,136.62,11.25]
[1726246833924,12.6714,136.66,136.62,11.25]
[1726246834123,11.25,136.66,136.62,11.25]
[1726246834434,3.6587,136.64,136.62,11.25]
[1726246835232,3.6589,136.63,136.62,11.25]
[1726246835433,3.74724288,136.68,136.62,11.25]
[1726246835631,11.25,136.66,136.62,11.25]
[1726246835928,3.6588,136.64,136.59,3.65617]
[1726246836133,11.25,136.64,136.57,1.3504]
[1726246836333,11.25,136.63,136.59,11.25]
[1726246836535,11.25,136.63,136.57,1.3504]
[1726246836724,11.25,136.62,136.57,12.6004]
[1726246837033,3.6599,136.6,136.57,12.6004]
[1726246837233,11.25,136.62,136.57,12.6004]
[1726246838032,11.25,136.65,136.61,11.25]
[1726246838424,3.6593,136.62,136.61,11.25]
[1726246838820,3.59189156,136.64,136.61,11.25]
[1726246839027,3.6591,136.63,136.61,11.25]
[1726246839734,3.6589,136.64,136.62,11.25]
[1726246839938,3.58922498,136.66,136.62,11.25]
[1726246840125,3.58922498,136.66,136.63,11.25]
[1726246840320,11.25,136.67,136.62,11.25]
[1726246840521,14.88609987,136.67,136.62,11.25]
[1726246840938,3.6588,136.64,136.62,11.25]
[1726246841327,3.6588,136.64,136.63,11.25]
[1726246841935,3.63609987,136.67,136.63,11.25]
[1726246842135,11.25,136.69,136.63,11.25]
[1726246842438,3.6584,136.66,136.65,11.25]
[1726246842939,14.85297934,136.69,136.65,11.25]
[1726246842940,3.60297934,136.69,136.65,11.25]
[1726246843127,3.6579,136.67,136.66,11.25]
[1726246843322,3.7142909,136.68,136.66,11.25]
[1726246843523,12.6074,136.7,136.66,11.25]
[1726246843727,3.6578,136.68,136.66,11.25]
[1726246843931,12.6074,136.7,136.66,11.25]
[1726246844133,18.9174,136.7,136.62,4.1673]
[1726246844335,18.9174,136.7,136.62,1.3721]
[1726246844633,22.59544141,136.7,136.62,1.3721]
[1726246844836,3.6582,136.66,136.62,5.0313]
[1726246845436,3.6581,136.67,136.62,5.0313]
[1726246845635,3.6581,136.67,136.63,17.56]
[1726246846138,5.03544141,136.7,136.63,17.56]
[1726246846538,5.03544141,136.7,136.63,21.21537]
[1726246846734,3.6581,136.67,136.63,21.21537]
[1726246848632,3.6581,136.67,136.63,24.87427]
[1726246849243,3.6581,136.67,136.63,21.21537]
[1726246849744,3.67018068,136.69,136.63,3.65537]
[1726246849948,17.56,136.68,136.62,1.3721]
[1726246850942,21.21590268,136.68,136.62,1.3721]
[1726246851842,3.6589,136.64,136.62,1.3721]
[1726246852436,17.56,136.66,136.61,3.59302]
[1726246852639,17.56,136.64,136.57,3.59302]
[1726246852841,17.56,136.64,136.57,3.6559]
[1726246853545,17.56,136.64,136.57,7.3163]
[1726246853546,3.6592,136.62,136.57,7.3163]
[1726246853741,17.56,136.64,136.57,7.3163]
[1726246853946,21.21067846,136.64,136.57,7.3163]
[1726246854147,21.21067846,136.64,136.57,3.6559]
[1726246854347,21.21067846,136.64,136.56,17.56]
[1726246855237,3.6598,136.6,136.56,17.56]
[1726246855444,21.21067846,136.64,136.56,17.56]
[1726246855746,21.21067846,136.64,136.55,10.06653]
[1726246855747,17.56,136.63,136.55,10.06653]
[1726246855949,17.56,136.63,136.55,1.3773]
[1726246856243,17.56,136.6,136.53,17.56]
[1726246856436,3.6613,136.55,136.51,18.9534]
[1726246856746,17.56,136.58,136.51,18.9534]
[1726246857242,3.6609,136.56,136.51,18.9534]
[1726246857431,17.56,136.58,136.51,18.9534]
[1726246857635,3.6603,136.58,136.54,21.2213]
[1726246857945,3.6603,136.58,136.54,17.56]
[1726246858338,3.6601,136.59,136.54,21.2212]
[1726246858648,3.6601,136.59,136.56,17.56]
[1726246859231,1.4182,136.62,136.56,17.56]
[1726246859232,3.6603,136.58,136.56,17.56]
[1726246859836,3.6605,136.57,136.54,17.56]
[1726246860249,18.9782,136.62,136.54,17.56]
[1726246860551,17.56,136.6,136.51,5.05024]
[1726246860742,17.56,136.6,136.51,1.3934]
[1726246860936,17.56,136.6,136.51,4.98602]
[1726246861136,3.6612,136.55,136.51,4.98602]
[1726246861541,3.6612,136.55,136.51,8.64802]
[1726246861742,3.661,136.56,136.51,4.98602]
[1726246862148,3.661,136.56,136.52,3.6618]
[1726246862543,1.4182,136.62,136.56,3.6607]
[1726246862753,3.71793758,136.63,136.57,17.56]
[1726246863046,3.6596,136.61,136.57,17.56]
[1726246863249,3.6596,136.61,136.57,21.15262]
[1726246863647,3.6593,136.62,136.57,21.15262]
[1726246863952,22.58517646,136.67,136.57,21.15262]
[1726246864142,3.6591,136.63,136.59,17.56]
[1726246864537,22.58517646,136.67,136.61,17.56]
[1726246864538,5.02517646,136.67,136.61,17.56]
[1726246864746,3.6585,136.65,136.61,17.56]
[1726246865049,22.58517646,136.67,136.63,3.02597445]
[1726246865249,3.6587,136.64,136.63,3.02597445]
[1726246866757,3.62817646,136.67,136.63,3.02597445]
[1726246866962,19.0049,136.7,136.63,3.02597445]
[1726246867259,3.6583,136.66,136.63,3.02597445]
[1726246867552,3.58258615,136.68,136.63,20.58597445]
[1726246867751,1.4449,136.7,136.63,20.58597445]
[1726246867948,3.658,136.67,136.63,20.58597445]
[1726246868653,3.66678817,136.7,136.64,17.56]
[1726246868855,1.4176,136.71,136.63,3.02597445]
[1726246869051,17.56,136.7,136.63,3.02597445]
[1726246869252,3.6583,136.66,136.63,3.02597445]
[1726246869556,3.63859619,136.69,136.63,3.02597445]
[1726246869750,3.658,136.67,136.63,3.02597445]
[1726246870050,3.658,136.67,136.63,6.61859445]
[1726246870859,3.658,136.67,136.63,10.27749445]
[1726246872061,3.6577,136.68,136.64,17.56]
[1726246872256,3.69104547,136.7,136.64,17.56]
[1726246872463,3.6576,136.69,136.64,17.56]
[1726246872760,3.69104547,136.7,136.64,24.81112]
[1726246872957,3.6575,136.69,136.64,21.15262]
[1726246873159,3.69104547,136.7,136.64,21.15262]
[1726246873467,17.56,136.81,136.68,17.56]
[1726246873468,3.6564,136.73,136.68,17.56]
[1726246873667,1.3745,136.78,136.68,17.56]
[1726246873870,18.9345,136.78,136.68,21.15262]
[1726246874362,1.3745,136.78,136.7,17.56]
[1726246874960,18.9345,136.78,136.7,17.56]
[1726246876167,18.9345,136.78,136.68,22.52832]
[1726246876371,3.6567,136.72,136.68,18.9357]
[1726246876963,3.6564,136.73,136.68,18.9357]
[1726246877660,3.6564,136.73,136.68,22.5931]
[1726246879465,3.6564,136.73,136.69,17.56]
[1726246882975,3.6565,136.72,136.69,17.56]
[1726246883180,1.3745,136.78,136.67,23.81151]
[1726246883181,17.56,136.76,136.67,23.81151]
[1726246883378,17.56,136.73,136.67,1.3499]
[1726246884174,3.6572,136.7,136.67,1.3499]
[1726246884970,3.6573,136.69,136.67,1.3499]
[1726246885581,1.3745,136.78,136.64,1.3865]
[1726246885789,17.56,136.71,136.64,1.3865]
[1726246886581,21.28555588,136.71,136.64,1.3865]
[1726246886977,3.6577,136.68,136.64,1.3865]
[1726246887573,21.28555588,136.71,136.63,4.46337445]
[1726246889079,71.35498708,136.85,136.63,4.46337445]
[1726246889080,17.56,136.93,136.72,21.98]
[1726246889282,2.6788,136.92,136.72,29.24493164]
[1726246889484,2.6788,136.92,136.84,17.56]
[1726246889782,2.6788,136.92,136.86,17.56]
[1726246890174,1.4503,137.0,136.91,17.56]
[1726246890371,1.4503,137.0,136.94,17.56]
[1726246890984,5.13379291,137.0,136.94,17.56]
[1726246891175,5.13379291,137.0,136.87,17.56]
[1726246891176,19.0103,137.0,136.87,3.59236]
[1726246891377,19.0103,137.0,136.8,21.98]
[1726246891378,22.59296537,137.0,136.9,17.56]
[1726246892074,5.03296537,137.0,136.89,28.07]
[1726246894488,3.6504,136.95,136.89,28.07]
[1726246895285,3.6508,136.94,136.89,28.07]
[1726246895474,28.07,136.98,136.86,28.07]
[1726246895789,1.3093,136.93,136.84,3.59251]
[1726246895976,4.9973539,136.93,136.85,28.07]
[1726246896182,3.6512,136.92,136.85,31.723]
[1726246896483,3.6512,136.92,136.85,28.07]
[1726246896673,3.6512,136.92,136.85,31.723]
[1726246899484,4.9973539,136.93,136.85,28.07]
[1726246900289,33.0673539,136.93,136.83,29.5053]
[1726246900485,33.0673539,136.93,136.81,28.07]
[1726246900878,33.0673539,136.93,136.79,33.0461]
[1726246900879,28.07,136.91,136.79,33.0461]
[1726246901183,1.4432,136.9,136.79,29.3915]
[1726246901691,3.6527,136.87,136.79,33.0459]
[1726246902189,3.74039374,136.86,136.79,29.3915]
[1726246902386,28.07,136.88,136.79,29.3915]
[1726246902986,3.6533,136.85,136.79,1.3215]
[1726246903194,3.62084446,136.86,136.79,1.3215]
[1726246903485,3.6537,136.83,136.76,28.07]
[1726246903882,1.11558985,136.85,136.76,3.6553]
[1726246904075,3.6537,136.83,136.76,3.6553]
[1726246904279,1.11558985,136.85,136.76,3.6553]
[1726246904478,29.18558985,136.85,136.76,3.6553]
[1726246904684,3.654,136.82,136.76,3.6553]
[1726246904886,29.18558985,136.85,136.75,3.6556]
[1726246905282,3.654,136.82,136.74,29.4617]
[1726246905882,29.18558985,136.85,136.74,29.4617]
[1726246906601,3.6544,136.81,136.74,33.1176]
[1726246906892,29.18558985,136.85,136.74,33.1176]
[1726246907698,29.18558985,136.85,136.75,3.6556]
[1726246908187,29.18558985,136.85,136.74,29.4617]
[1726246908387,3.6539,136.82,136.76,3.6554]
[1726246908588,29.18558985,136.85,136.74,33.0546]
[1726246909090,3.6537,136.83,136.77,3.655]
[1726246909286,1.11558985,136.85,136.76,28.07]
[1726246909997,4.76868985,136.85,136.79,3.6545]
[1726246911187,4.76868985,136.85,136.8,3.6543]
[1726246911384,3.6528,136.86,136.8,3.6543]
[1726246911588,2.8403,136.89,136.81,28.07]
[1726246911789,2.8403,136.89,136.82,3.6537]
[1726246912193,3.6524,136.88,136.82,3.6537]
[1726246912493,1.4007,136.89,136.84,3.6532]
[1726246912699,1.4007,136.89,136.81,29.4113]
[1726246912997,1.4007,136.89,136.84,3.6533]
[1726246913198,5.1006539,136.93,136.83,28.07]
[1726246913396,3.6515,136.91,136.83,28.07]
[1726246913695,3.6515,136.91,136.85,28.07]
[1726246914092,3.6515,136.91,136.85,31.723]
[1726246914400,6.5013539,136.93,136.85,28.07]
[1726246914601,6.5013539,136.93,136.85,31.7229]
[1726246914790,3.6519,136.9,136.85,28.07]
[1726246915802,3.6519,136.9,136.85,31.723]
[1726246916493,3.6515,136.91,136.85,28.07]
[1726246917094,3.6515,136.91,136.85,31.7229]
[1726246917499,3.6515,136.91,136.85,28.07]
[1726246918094,3.6515,136.91,136.86,3.6527]
[1726246918301,3.6515,136.91,136.85,28.07]
[1726246919612,3.6515,136.91,136.85,31.7228]
[1726246920402,5.0887539,136.93,136.85,31.7228]
[1726246920403,3.6518,136.9,136.85,31.7228]
[1726246921499,3.652,136.89,136.84,3.6532]
[1726246922400,3.6518,136.9,136.85,3.6529]
[1726246922999,5.0887539,136.93,136.86,28.07]
[1726246923605,5.0887539,136.93,136.86,31.7226]
[1726246924408,3.6516,136.91,136.86,31.7226]
[1726246924709,5.0887539,136.93,136.83,4.6416]
[1726246924908,5.0887539,136.93,136.83,29.1187]
[1726246925812,5.0887539,136.93,136.83,28.07]
[1726246926011,5.0887539,136.93,136.81,2.2778]
[1726246926012,28.07,136.92,136.81,30.3478]
[1726246926312,3.6527,136.87,136.81,30.3478]
[1726246926526,28.07,136.92,136.81,30.3478]
[1726246926817,28.07,136.92,136.81,33.94044]
[1726246927405,5.0887539,136.93,136.81,33.94044]
[1726246927406,3.6524,136.88,136.83,31.7234]
[1726246928518,5.0887539,136.93,136.82,3.6538]
[1726246929618,3.6526,136.87,136.82,3.6538]
[1726246929919,3.6526,136.87,136.83,3.6534]
[1726246930111,5.0887539,136.93,136.82,28.07]
[1726246930513,5.0887539,136.93,136.85,3.6529]
[1726246930709,3.6516,136.91,136.85,28.07]
[1726246931710,3.6880539,136.93,136.85,28.07]
[1726246931914,2.6554,136.95,136.86,3.6525]
[1726246932522,2.6554,136.95,136.87,1.337]
[1726246933321,3.6516,136.91,136.87,1.337]
[1726246934513,3.6513,136.92,136.87,1.337]
[1726246934916,1.3074,136.95,136.87,1.337]
[1726246936127,1.3074,136.95,136.87,18.887]
[1726246937924,3.6516,136.91,136.87,18.887]
[1726246939230,1.3074,136.95,136.89,17.55]
[1726246939617,18.8821,136.98,136.89,17.55]
[1726246939618,3.6511,136.93,136.89,17.55]
[1726246940217,1.3321,136.98,136.91,17.55]
[1726246940617,3.6509,136.93,136.91,17.55]
[1726246940831,3.6509,136.93,136.89,21.14264]
[1726246941326,18.8821,136.98,136.89,21.14264]
[1726246941829,18.8821,136.98,136.89,24.79444]
[1726246942024,3.6509,136.93,136.89,21.14264]
[1726246943026,18.8821,136.98,136.89,21.14264]
[1726246944029,3.6506,136.95,136.9,21.2016]
[1726246944223,1.3321,136.98,136.9,17.55]
[1726246944619,3.6509,136.93,136.9,17.55]
[1726246944826,18.91,136.99,136.9,17.55]
[1726246945132,18.91,136.99,136.9,21.14264]
[1726246945331,3.6508,136.94,136.9,21.14264]
[1726246946624,18.91,136.99,136.9,21.14264]
[1726246947239,3.6507,136.94,136.9,21.14264]
[1726246949138,3.6509,136.93,136.9,21.14264]
[1726246950445,3.6507,136.94,136.92,17.55]
[1726246950750,1.36,136.99,136.92,17.55]
[1726246951143,3.58266537,137.0,136.92,17.55]
[1726246951342,7.2978,137.01,136.94,17.55]
[1726246951752,11.01116099,137.01,136.94,17.55]
[1726246952646,3.6504,136.96,136.94,17.55]
[1726246953254,11.01116099,137.01,136.94,17.55]
[1726246953756,3.6499,136.97,136.94,17.55]
[1726246954954,3.64031803,136.99,136.94,17.55]
[1726246954955,3.6497,136.98,136.94,17.55]
[1726246955250,3.6497,136.98,136.96,17.55]
[1726246957644,3.73273109,137.01,136.96,17.55]
[1726246958161,3.6497,136.98,136.96,17.55]
[1726246959057,3.6498,136.97,136.94,17.55]
[1726246960559,3.6498,136.97,136.94,21.14264]
[1726246961057,3.6502,136.96,136.94,21.14264]
[1726246964864,3.6504,136.95,136.94,3.59264]
[1726246965162,21.28318074,137.0,136.91,17.55]
[1726246965347,17.55,137.0,136.91,17.55]
[1726246965550,7.2988,136.99,136.91,17.55]
[1726246965954,24.8488,136.99,136.91,17.55]
[1726246966154,3.70642595,137.0,136.92,17.55]
[1726246966356,17.55,137.01,136.92,17.55]
[1726246966657,2.7408,137.02,136.92,17.55]
[1726246966858,17.55,137.01,136.92,17.55]
[1726246967065,21.11654014,137.01,136.92,17.55]
[1726246967763,3.6504,136.95,136.92,17.55]
[1726246967961,17.55,136.99,136.91,17.55]
[1726246968361,3.6508,136.94,136.91,17.55]
[1726246970463,3.6508,136.94,136.91,21.14238]
[1726246970762,3.6509,136.93,136.91,21.14238]
[1726246971765,3.6508,136.94,136.92,17.55]
[1726246975066,3.6509,136.93,136.92,17.55]
[1726246976170,3.6512,136.92,136.91,21.14238]
[1726246976372,3.6512,136.92,136.91,17.55]
[1726246976571,17.55,136.98,136.89,17.55]
[1726246976772,3.6516,136.91,136.89,17.55]
[1726246976980,3.73683762,136.94,136.89,17.55]
[1726246977286,3.6514,136.92,136.89,17.55]
[1726246977464,3.64732596,136.94,136.89,17.55]
[1726246977664,1.3259,136.96,136.89,17.55]
[1726246978275,2.6841,136.96,136.89,17.55]
[1726246978578,3.6513,136.92,136.89,17.55]
[1726246978774,3.63772725,136.94,136.89,17.55]
[1726246979077,2.6841,136.96,136.89,17.55]
[1726246979267,3.6513,136.92,136.89,17.55]
[1726246979864,3.6516,136.91,136.89,17.55]
[1726246980565,3.63041964,136.94,136.89,17.55]
[1726246980770,2.6841,136.96,136.89,17.55]
[1726246981265,17.55,136.94,136.85,21.19763]
[1726246981662,17.55,136.94,136.85,17.55]
[1726246981867,17.55,136.94,136.87,17.55]
[1726246982266,6.29552402,136.96,136.89,17.55]
[1726246983175,3.6512,136.92,136.89,17.55]
[1726246983470,3.6508,136.94,136.9,17.55]
[1726246983676,2.6841,136.96,136.9,17.55]
[1726246984074,3.6511,136.93,136.92,11.23]
[1726246985876,3.6507,136.94,136.92,11.23]
[1726246986073,3.6507,136.94,136.93,11.23]
[1726246986667,11.23,136.99,136.93,11.23]
[1726246986864,11.23,136.99,136.95,11.23]
[1726246987072,1.3713,137.0,136.95,11.23]
[1726246987073,3.6501,136.96,136.95,11.23]
[1726246989287,3.6497,136.98,136.95,11.23]
[1726246989578,3.6497,136.98,136.97,11.23]
[1726246990775,1.3713,137.0,136.95,11.23]
[1726246990776,3.6502,136.96,136.95,11.23]
[1726246999279,1.3713,137.0,136.95,11.23]
[1726246999484,1.3713,137.0,136.96,11.23]
[1726246999882,1.3713,137.0,136.98,11.23]
[1726247000986,3.6493,136.99,136.98,11.23]
[1726247002689,3.6492,137.0,136.98,11.23]
[1726247002883,1.3512,137.02,136.99,11.23]
[1726247003776,3.649,137.0,136.99,11.23]
[1726247006881,14.81683453,137.01,136.94,7.24275]
[1726247007191,14.81683453,137.01,136.96,11.23]
[1726247007382,3.6494,136.99,136.98,11.23]
[1726247010290,3.6492,137.0,136.98,11.23]
[1726247011398,3.6493,136.99,136.98,11.23]
[1726247011892,3.6486,137.02,136.98,11.23]
[1726247012094,3.6486,137.02,137.01,11.23]
[1726247012288,15.316,137.07,137.01,11.23]
[1726247012591,7.75928623,137.07,137.03,11.23]
[1726247012797,3.6482,137.04,137.03,11.23]
[1726247013593,3.6482,137.04,137.01,3.59225]
[1726247013789,3.6482,137.04,137.03,11.23]
[1726247014196,3.6479,137.05,137.03,11.23]